Cogmind - Beta 17.1 @@@ ROGUE MODE // 2026.09.03 @ 22:08:37 Player: Rockstar Result: Destroyed by D9-AA3(R) with Subdweller Machine Gun Performance ------------- Evolutions (0) 0 Regions Visited (2) 400 Robots Destroyed (7) 35 Value Destroyed (268) 268 Prototype IDs (0) 0 Alien Tech Used (0) 0 Bonus (0) 0 TOTAL SCORE: 703 Bonus ------- None Cogmind --------- Core Integrity 0/250 Matter 255/300 Energy 77/100 System Corruption 0% Temperature Cool (0) Movement Core (200) Ox3 Location -10/Subcaves Parts ------- > --- POWER (1) -------- (None) > --- PROPULSION (2) --- (None) > --- UTILITY (2) ------ Small Storage Unit Structural Scanner > --- WEAPON (2) ------- Subdweller Laser Light Assault Rifle > --- INVENTORY (8) ---- Ion Engine Light Treads Light Treads Heat Sink Subdweller Optics Scrap Shield Fragment (46) Peak State ------------ > --- POWER ------------ Ion Engine > --- PROPULSION ------- Subdweller Monowheel Subdweller Monowheel > --- UTILITY ---------- Small Storage Unit Subdweller Optics > --- WEAPON ----------- Light Assault Rifle Light Assault Rifle > --- INVENTORY -------- Ion Engine Light Treads Light Treads Heat Sink Structural Scanner Subdweller Laser Subdweller Machine Gun Scrap Shield Fragment [Rating: 11] Favorites ----------- Power Ion Engine Engine Ion Engine Propulsion Light Treads Treads Light Treads Wheel Subdweller Monowheel Utility Small Storage Unit Device Structural Scanner Storage Small Storage Unit Weapon Light Assault Rifle Energy Gun Subdweller Laser Ballistic Gun Light Assault Rifle Build | -11 -10 -10 ------- Run | Yrd Mat Sub Slots Evolved . | . . . Power . | . . . Propulsion . | . . . Utility . | . . . Weapon . | . . . Parts Attached 14 | 6 1 7 Power 1 | 1 . . Engine 1 | 1 . . Core . | . . . Reactor . | . . . Propulsion 5 | 2 . 3 Treads 2 | 2 . . Leg . | . . . Wheel 3 | . . 3 Hover . | . . . Flight . | . . . Utility 3 | 1 1 1 Device 2 | . 1 1 Storage 1 | 1 . . Processor . | . . . Hackware . | . . . Protection . | . . . Artifact . | . . . Weapon 5 | 2 . 3 Energy Gun 1 | . . 1 Energy Cannon . | . . . Ballistic Gun 4 | 2 . 2 Ballistic Cannon . | . . . Launcher . | . . . Special Weapon . | . . . Impact Weapon . | . . . Slashing Weapon . | . . . Piercing Weapon . | . . . Special Melee Weapon . | . . . Unidentified Prototypes . | . . . Parts Lost 6 | . . 6 Power 1 | . . 1 Propulsion 2 | . . 2 Utility . | . . . Weapon 3 | . . 3 Highest Loss Streak 5 | . . 5 To Critical Strikes . | . . . Average Backups 4 | 1 3 6 Power 1 | . 1 1 Propulsion . | . . 1 Utility 1 | . . 1 Weapon 1 | . 1 1 Tool/Special . | . . . Unused Backups 3 | . . 3 Power 2 | . . 2 Propulsion . | . . . Utility 1 | . . 1 Weapon . | . . . Tool/Special . | . . . Average Slot Usage (%) 96 | . 96 95 Engine 12 | . 14 12 Treads 18 | . 28 12 Wheel 8 | . . 13 Device 12 | . 11 14 Storage 14 | . 14 14 Ballistic Gun 27 | . 28 27 Peak Build Rating 11 | 6 7 11 Average Rating 7 | 4 6 8 On Entrance 4 | . 6 7 Avg Prop Armor Cover (%) . | . . . Naked Turns . | . . . Heaviest Build 14 | 13 14 14 Greatest Support 40 | 40 40 40 Greatest Overweight (x) 3 | 3 . . Average Overweight (x) . | . . . Largest Inventory Capacity 8 | 8 8 8 Average Capacity 7 | 7 8 8 Most Carried 8 | 2 4 8 Average Carried 5 | 1 3 7 Final Capacity 8 | 8 8 8 Final Carried 6 | 2 4 6 Class Distribution -------------------- 100% | Mutant Dominant Class ---------------- Mutant | -10/Materials Mutant | -10/Subcaves Resources | -11 -10 -10 ----------- Run | Yrd Mat Sub Matter Collected 396 | 260 26 110 Remotely . | . . . Salvage Created 335 | . 82 253 Parts 13 | . 2 11 Haulers Intercepted . | . . . Recyclers Shooed . | . . . Parts Field Recycled . | . . . Retrieved Matter . | . . . Parts Self-Destructed 5 | . . 5 Prevented . | . . . Parts Restored . | . . . Kills | -11 -10 -10 ------- Run | Yrd Mat Sub Combat Hostiles Destroyed 7 | . 2 5 Guns 7 | . 2 5 Classes Destroyed 2 | . 1 1 Grunt 2 | . 2 . Subdweller 5 | . . 5 Best Kill Streak 2 | . 2 2 Combat Bots Only 2 | . 2 2 Max Kills in Single Turn 1 | . 1 1 Gunslinging . | . . . Exploded . | . . . Melee . | . . . Uniques/NPCs Destroyed . | . . . Combat | -11 -10 -10 -------- Run | Yrd Mat Sub Hostile Shots Fired 67 | . 5 62 Missed 13 | . . 13 Hits 54 | . 5 49 Projectile 54 | . 5 49 Critical Strikes 2 | . . 2 Damage Taken 1086 | . 53 1033 Core 251 | . . 251 Absorbed by Shields . | . . . Core Remaining (%) 100 | 100 . . Volleys Fired 43 | . 4 39 Largest 2 | . 2 2 Hottest 80 | . 40 80 Shots Fired 80 | . 8 72 Gun 80 | . 8 72 Cannon . | . . . Launcher . | . . . Special . | . . . Kinetic 79 | . 8 71 Thermal 1 | . . 1 Explosive . | . . . Electromagnetic . | . . . Robot Hit Streak 16 | . 5 16 Robot Miss Streak 2 | . 1 2 Penetration Max . | . . . Secondary Targets 1 | . . 1 Max Gunslinging Chain 1 | . . 1 Shots Hit Robots 64 | . 6 58 Core Hits 19 | . 3 16 Critical Kills 1 | . 1 . Critical Parts Destroyed . | . . . Critical Strikes 1 | . 1 . Destroy 1 | . 1 . Melee Attacks . | . . . Impact . | . . . Slashing . | . . . Piercing . | . . . Sneak Attacks . | . . . Combat Hostiles . | . . . Follow-up Attacks . | . . . Damage Inflicted 722 | . 70 652 Guns 722 | . 70 652 Cannons . | . . . Explosions . | . . . Melee . | . . . Ramming . | . . . Kinetic 702 | . 70 632 Thermal 20 | . . 20 Explosive . | . . . Electromagnetic . | . . . Impact . | . . . Slashing . | . . . Piercing . | . . . Highest Corruption . | . . . Average Corruption . | . . . Corruption Purged . | . . . Corruption Blocked . | . . . Overload Shots . | . . . Overflow Damage . | . . . Projectiles . | . . . Explosions . | . . . Melee . | . . . Knockbacks . | . . . Impact . | . . . Kinetic . | . . . Secondary . | . . . Self-Inflicted Damage . | . . . Shots . | . . . Rammed . | . . . Targets Rammed . | . . . Kicked . | . . . Crushed . | . . . Highest Temperature 6 | . 6 . Average Temperature 6 | . 6 . Received Heat Transfer 108 | . 30 78 Siege Activations . | . . . Martial Activations . | . . . Shielding Activations . | . . . Robots Disrupted . | . . . Combat Hostiles . | . . . Robots Corrupted . | . . . Combat Hostiles . | . . . Parts Fried . | . . . Impact Corruptions . | . . . Robots Melted . | . . . Combat Hostiles . | . . . Parts Melted 1 | . . 1 Heat Transferred 25 | . . 25 Parts Sabotaged . | . . . Parts Stolen . | . . . Parts Stripped . | . . . Power Chain Reactions . | . . . Alert | -11 -10 -10 ------- Run | Yrd Mat Sub Maximum Alert Level . | . . . Low Security (%) 100 | 100 100 . Level 1 . | . . . Level 2 . | . . . Level 3 . | . . . Level 4 . | . . . Level 5 . | . . . High Security . | . . . Max Security . | . . . Peak Influence 30 | . 30 . Initial . | . . . Average 3 | . 4 . Influence Increases 40 | . 40 . Destroy 0b10 Robot/C 40 | . 40 . Influence Decreases 40 | . 40 . Time Decay 40 | . 40 . Squads Dispatched 2 | . 2 . Investigation 1 | . 1 . Extermination . | . . . Reinforcement 1 | . 1 . Assault . | . . . Garrison . | . . . Intercept . | . . . Searches Triggered . | . . . Construction Impeded . | . . . Haulers Reinforced . | . . . Active Scanning Responses . | . . . Cargo Convoy Interrupts . | . . . Stealth | -11 -10 -10 --------- Run | Yrd Mat Sub Distress Signals 1 | . 1 . Communications Jammed . | . . . Distress Signals . | . . . Times Spotted 8 | . 2 6 Peak Tracking Total 2 | . 2 2 Tactical Retreats . | . . . Traps | -11 -10 -10 ------- Run | Yrd Mat Sub Traps Triggered . | . . . Indirectly . | . . . Trap Hack Attempts . | . . . Triggered . | . . . Disarmed . | . . . Reprogrammed . | . . . Reused . | . . . Traps Extracted . | . . . Installed . | . . . Triggered . | . . . Machines | -11 -10 -10 ---------- Run | Yrd Mat Sub Machines Disabled . | . . . Max in Single Turn . | . . . Machines Repaired . | . . . Machines Dismantled . | . . . Machines Sabotaged . | . . . Overloaded Fab Kills . | . . . Hacking | -11 -10 -10 --------- Run | Yrd Mat Sub Machines Accessed 1 | . 1 . Terminals 1 | . 1 . Fabricators . | . . . Repair Stations . | . . . Recycling Units . | . . . Scanalyzers . | . . . Garrison Access . | . . . Total Hacks 2 | . 2 . Successful 1 | . 1 . Failed 1 | . 1 . Catastrophic . | . . . Database Lockouts . | . . . Manual 25 | . 25 . Terminals 2 | . 2 . Fabricators . | . . . Repair Stations . | . . . Recycling Units . | . . . Scanalyzers . | . . . Garrison Access . | . . . Terminal Hacks 1 | . 1 . Hauler Manifests 1 | . 1 . Fabricator Hacks . | . . . Repair Station Hacks . | . . . Recycling Unit Hacks . | . . . Scanalyzer . | . . . Garrison Access Hacks . | . . . Unauthorized Hacks . | . . . Terminals . | . . . Fabricators . | . . . Repair Stations . | . . . Recycling Units . | . . . Scanalyzers . | . . . Garrison Access . | . . . Data Cores Recovered . | . . . Used . | . . . Hacking Detections 1 | . 1 . Full Trace Events . | . . . Feedback Events . | . . . Feedback Blocked . | . . . Robot Schematics Acquired . | . . . Robots Built . | . . . Authchips . | . . . Time . | . . . Total Robot Build Rating . | . . . Part Schematics Acquired . | . . . Parts Built . | . . . Authchips . | . . . Time . | . . . Total Part Build Rating . | . . . Part Studies Acquired . | . . . Parts Repaired . | . . . Time . | . . . Parts Recycled . | . . . Recycled Matter . | . . . Retrieved Matter . | . . . Retrieved Components . | . . . Parts Scanalyzed . | . . . Part Schematics Acquired . | . . . Parts Damaged . | . . . Bothacking | -11 -10 -10 ------------ Run | Yrd Mat Sub Used RIF Installer . | . . . Robots Hacked . | . . . Non-combat . | . . . Combat . | . . . Robot Hacks Applied . | . . . Relay Couplers Released . | . . . Fabnet Peak Effective % . | . . . Robots Rewired . | . . . Allies Hacked . | . . . Hacks Repelled . | . . . Allies | -11 -10 -10 -------- Run | Yrd Mat Sub Total Allies . | . . . Largest Group . | . . . Highest-Rated Group . | . . . Highest-Rated Ally . | . . . Total Orders . | . . . Ally Attacks . | . . . Total Damage . | . . . Kills . | . . . Allies Corrupted . | . . . Allies Melted . | . . . Intel | -11 -10 -10 ------- Run | Yrd Mat Sub Active Infowar (turns) 665 | . 217 448 Optics 70 | . . 70 Structural 595 | . 217 378 Robot Analysis Total . | . . . Derelict Logs Recovered . | . . . Drone Launches . | . . . Drone Recoveries . | . . . Exploration | -11 -10 -10 ------------- Run | Yrd Mat Sub Turns Passed 779 | 64 267 448 Spaces Moved 376 | 36 99 241 Core 13 | 13 . . Treads 222 | 23 99 100 Legs . | . . . Wheels 141 | . . 141 Hover . | . . . Flight . | . . . Fastest Speed 50 | 50 160 110 Average Speed 140 | 150 160 130 Slowest Speed 200 | 200 160 160 Overloaded Moves . | . . . Propulsion Burnouts . | . . . Robots Hopped . | . . . Potential Cave-ins . | . . . Cave-ins Triggered . | . . . Exploration Rate (%) 15 | 3 14 29 Regions Visited 2 Branch Regions 1 Pre-discovered Areas . | . . . Known Exits Taken . | . . . Unknown Exits Taken 2 | 1 1 . Scrap Searched . | . . . Spaces Dug . | . . . Terrain Destroyed . | . . . Melee . | . . . Projectile . | . . . AOE . | . . . Terrain Rammed . | . . . Walls Destroyed . | . . . Machines Disabled . | . . . Actions | -11 -10 -10 --------- Run | Yrd Mat Sub Total 554 | 43 200 311 Wait 110 | . 95 15 Move 374 | 35 98 241 Hop . | . . . Pick Up 9 | 2 2 5 Fast Attach 8 | 6 1 1 Attach 3 | . . 3 Detach 1 | . . 1 Swap 4 | . . 4 Drop 2 | . . 2 Fire 43 | . 4 39 Melee . | . . . Ram . | . . . Kick . | . . . Crush . | . . . Escape Stasis . | . . . Rewire . | . . . Trap . | . . . Miscellaneous . | . . . Route ------- -11/Scrapyard -10/Materials -10/Subcaves History --------- Turn | Location | Event 17 | -11/Scrapyard | Discovered new exit (range 14) 65 | -11/Scrapyard | Entered Materials 123 | -10/Materials | Discovered new exit (range 9) 307 | -10/Materials | Build established: Mutant 332 | -10/Materials | Entered Subcaves 557 | -10/Subcaves | Core integrity fell below 50% 748 | -10/Subcaves | Core integrity fell below 20% 780 | -10/Subcaves | Destroyed by D9-AA3(R) with Subdweller Machine Gun Last Messages --------------- 00559_ VP-NR9(R) affixes Scrap Shield Fragment to Scrap Shield. 00565_ VP-NR9(R) destroyed. 00566_ Subatomizers dissect the Sub. Machine Gun. 00569_ Acquired Sub. Monowheel. 00573_ Acquired Sub. Machine Gun. 00574_ Acquired 42 matter. 00576_ Subatomizers dissect the Sub. Optics. 00577_ Dropped Sub. Monowheel. 00579_ Acquired 36 matter. 00587_ Subatomizers dissect the Sub. Optics. 00613_ Subatomizers dissect the Sub. Monowheel, destroying it. 00729_ Ion Engine destroyed. 00737_ Lgt. Assault Rifle destroyed. 00739_ Sub. Optics melted. 00739_ F0-QR1(R) destroyed. 00753_ D9-AA3(R) affixes Scrap Shield Fragment to Scrap Shield. 00762_ Sub. Monowheel destroyed. 00770_ Sub. Machine Gun destroyed. 00772_ Sub. Monowheel destroyed. 00777_ Destroyed Scrap Shield. Map ----- +----------------------------------------------------+ | ?????????????????????????????????????????????????? | | ?????????????????????????????????????????????????? | | ?????????????????????????????????????????????????? | | ?????????????????????????????????????????????????? | | ?????????????????????????????????????????????????? | | ?????????????????????????????????????????????????? | | ?????????????????????????????###?????????????????? | | ?????????????????????????????###?????????????????? | | ?????????????????????#####" ##?????????????????? | | ?????????????#####?########## ###????????????????? | | ?????????????########## # "######?????????????? | | ?????????????## #### ## ## #####?????????????? | | ?????????????## ## " "# ##?????????????? | | ?????????????## ## ##?????????????? | | ?????????????### ### #####?????????????? | | ?????????????### #### ######?????????????? | | ?????????????### # ## ##????????????????? | | ?????????????## ## ##????????????????? | | ?????????????## ## ## ##???????####?????? | | ????????????### #### ## ####?????####?????? | | ????????????## ##### ## ########? #####??? | | ????????????## ???## &% ##### ###??? | | ????????????### ???## # ""# ##??? | | ????????????### ??#### # " ##??????????? | | ?????????????####?#### R### # # ###??????????? | | ##########?########## @## #### ###??????????? | | #################### #### ##??????????? | | #### #### ## ##### ??????????? | | ? ## ## ######## ?????????? | | ??? # ####?#"" ????????? | | ???? #### ###???""" ??????? | | ????## ##### ###???## " ## ?????? | | ???### ##### ### ##????### ### ##??? | | ???### ### ### ###???### #### ###??? | | ???## ### ##?????? #########??? | | ???## #### ?????? #?#####???? | | ???##### ##### ???? ##?????????? | | ???##### ###### ???? ##?????????? | | ????### ######?####### ### ??? ##?????????? | | ???#### ######??############# ???????????????? | | ???### ###??????????######## ???????????????? | | ##### ##???????????????????? ????????????????? | | ### ##?????????????????????????????????????? | | """### ###?????????????????????????????????????? | | """" # ##?????????????????????????????????????? | | """?## ##?????????????????????????????????????? | | """?### ###?????????????????????????????????????? | | ""??### ###?????????????????????????????????????? | | ##??### ###?????????????????????????????????????? | | ##??## ##?????????????????????????????????????? | +----------------------------------------------------+ Best States ------------- Heat Dissipation 25 Energy Generation 10 Energy Capacity 250 Matter Stores 300 Matter Capacity 300 Sight Range 21 Terrain Scan Density 10 Evasion (%) 40 Recoil Reduction 2 Item Schematics ----------------- None Robot Schematics ------------------ None Fabricated ------------ Nothing Repaired ---------- Nothing Studied --------- None Alien Tech Used ----------------- None Achievements -------------- None Challenges ------------ None Game ------ Seed ShockboltFieldMultirail Manual? 0 Play Time 00:18:33 Cumulative 167.7 hours Start 2026.09.03 @ 15:06:18 End 2026.09.03 @ 22:08:37 Sessions 3 Manual Loads 0 Difficulty Rogue Special Mode None Game No. 163 Rogue 160 Adventurer 1 Explorer 2 Win Type - Total 1 Types 1/0/0/0/0/0/0/0/0/0 Lore% 57 Gallery% 58 Achievement% 34 Wizard Run 0 Options --------- Layout 0 ASCII 0 Keyboard 0 Movement Mouse Keybinds 0 Fullscreen 2 Font 24/Smallcaps Map View 76x50 Zoom Use 5% Tactical HUD 1 Map Filters NONE Filters NONE Steam 1 RUN: 9b739a54-1aab-4839-869b-ce39e8e10fcb